[Event "XVI Memorial Lezcano Montalvo 2024"]
[Site "Gran Canaria"]
[Date "2024.03.30"]
[Round "8.6"]
[White "Omelja, Artem"]
[Black "Hernando Rodrigo, Jose Maria"]
[Result "1-0"]
[ECO "A84"]
[WhiteElo "2438"]
[BlackElo "2257"]
[Annotator "TA"]
[PlyCount "69"]
[EventDate "2024.03.23"]
[EventType "swiss"]
[EventCountry "ESP"]
[SourceTitle "playchess.com"]
[Source "ChessBase"]
[SourceQuality "1"]
[TimeControl "5400+30"]

{[%evp 15,69,8,14,8,40,11,23,-4,24,0,0,3,24,14,102,122,258,257,420,404,514,516,508,496,553,503,545,208,206,204,204,198,187,184,241,231,232,218,343,245,287,253,384,293,445,444,461,544,535,527,698,694,675,658,986,981]} 1. d4 {[%emt 0:00:07]} d5 {[%emt 0:00:24]} 2. c4 {[%emt 0:00:08]} e6 {[%emt 0:00:09]} 3. Nc3 {[%emt 0:00:07]} c6 {[%emt 0:00:15]} 4. e3 {[%emt 0:00:14]} f5 {[%emt 0:00:42]} 5. f4 {[%emt 0:00:48]} Nf6 {[%emt 0:00:07]} 6. Nf3 {[%emt 0:00:08]} Be7 {[%emt 0:00:21]} 7. Bd3 {[%emt 0:01:22]} O-O {[%emt 0:00:19]} 8. O-O {[%emt 0:00:09]} Ne4 {[%emt 0:01:46]} 9. Bd2 {[%emt 0:00:26]} b6 {[%emt 0:07:37]} 10. Be1 {[%emt 0:00:34]} Bb7 {[%emt 0:01:29]} 11. h3 {[%emt 0:00:30] White has an edge.} c5 {[%emt 0:05:31]} 12. cxd5 {[%emt 0:00:40]} exd5 {[%emt 0:00:58]} 13. Qe2 {[%emt 0:00:52]} Kh8 {[%emt 0:22:14]} 14. Rd1 {[%emt 0:01:13]} cxd4 {[%emt 0:00:25]} (14... Nd7 $11 {remains equal.}) 15. Nxd4 $16 {[%emt 0:00:54]} Nc5 {[%emt 0:12:38] This costs Black the game.} (15... Qc8 $16) 16. Bxf5 $18 {[%emt 0:02:13]} (16. Nxf5 $6 Nxd3 17. Qxd3 Na6 18. Nxe7 (18. Nxd5 Nc5 $18) 18... Qxe7 $16) 16... g6 {[%emt 0:12:18] [#] Repels Qh5} (16... Qe8 {was worth a try.} 17. Bb1 Nba6) 17. Bc2 {[%emt 0:02:40]} Ba6 {[%emt 0:03:25]} 18. Ndb5 {[%emt 0:00:27]} Bf6 {[%emt 0:00:21]} 19. b4 {[%emt 0:02:16][%cal Bb2b4,Bb4c5][%mdl 32]} d4 {[%emt 0:00:46]} 20. bxc5 {[%emt 0:00:23]} Qe8 {[%emt 0:00:11]} 21. exd4 {[%emt 0:04:57]} (21. Qf3 dxc3 22. a4 (22. Qxa8 Bxb5 23. cxb6 axb6 $18) (22. Bxc3 Bxc3 23. Nxc3 Bxf1 $18) (22. Nxc3 Bxf1 23. Ne4 Be5 $18) 22... Bxb5 23. axb5 (23. Qxa8 Bxf1 24. Kxf1 Qxe3 $11)) 21... Qxe2 {[%emt 0:00:32]} 22. Nxe2 {[%emt 0:00:09]} Bxb5 {[%emt 0:00:06]} 23. Bd3 {[%emt 0:01:04]} Bxd3 {[%emt 0:02:24]} 24. Rxd3 {[%emt 0:00:08]} bxc5 {[%emt 0:00:19]} (24... Re8 $142) 25. dxc5 {[%emt 0:00:07]} Na6 {[%emt 0:00:41] [#]} 26. Bf2 {[%emt 0:00:36]} Rfe8 {[%emt 0:03:30]} (26... Rac8 {is a better defense.} 27. Rc1 Rc6) 27. Rd2 {[%emt 0:00:14]} Re4 {[%emt 0:01:53]} 28. Rc1 {[%emt 0:00:27]} Rae8 {[%emt 0:00:40]} (28... Be7 $142 29. c6 Rc8) 29. Kf1 {[%emt 0:00:25]} g5 {[%emt 0:00:12]} (29... Kg8 {might work better.} 30. Rd6 (30. c6 Bd8 $18) 30... Nc7 31. Rxf6 Rxe2) 30. Rd6 {[%emt 0:03:46][%csl LRa6,LRf6] White is clearly winning.} Nb4 {[%emt 0:03:41]} 31. Ng3 {[%emt 0:03:41]} Rxf4 {[%emt 0:04:12][%cal Of6e5]} 32. Nh5 {[%emt 0:00:33][%csl LRf4,LRf6][%cal Oh5f4]} Be5 {[%emt 0:01:11]} 33. Nxf4 {[%emt 0:00:50]} Bxf4 {[%emt 0:00:04]} 34. Rc4 {[%emt 0:00:20]} ({Not} 34. Bd4+ Kg8 $18) 34... Nxa2 {[%emt 0:05:10]} 35. Rd7 {[%emt 0:01:21] Weighted Error Value: White=0.36/Black=0.63.  Mistake:       	White=1     	Black=7      Inaccurate:     	White=2     	Black=3      OK:         	White=10    	Black=5      Best:        	---       	Black=1} 1-0

[Event "XVI Memorial Lezcano Montalvo 2024"]
[Site "Gran Canaria"]
[Date "2024.03.30"]
[Round "8.7"]
[White "Sanz Wawer, Daniel"]
[Black "Strikovic, Aleksa"]
[Result "0-1"]
[ECO "B92"]
[WhiteElo "2397"]
[BlackElo "2430"]
[Annotator "TA"]
[PlyCount "162"]
[EventDate "2024.03.23"]
[EventType "swiss"]
[EventCountry "ESP"]
[SourceTitle "playchess.com"]
[Source "ChessBase"]
[SourceQuality "1"]
[TimeControl "5400+30"]

{[%evp 20,162,0,-22,-15,-12,0,-20,-20,-20,-19,-20,-12,-18,-16,-14,-20,-23,-12,-8,0,-12,0,0,0,-6,0,-13,-18,-12,-15,-22,-15,-20,-19,-112,-123,-203,-200,-201,-202,-162,-161,-153,-157,-166,-149,-233,-211,-168,-63,-138,-78,-78,-72,-163,-80,-65,-74,-60,-66,-76,-77,-113,-91,-99,-55,-123,-85,-81,-68,-259,-265,-267,-232,-232,-229,-271,-246,-271,-64,-114,-44,-34,-36,-199,-109,-229,-87,-142,-48,-59,-16,-186,-76,-191,-167,-224,-231,-236,-229,-235,-214,-420,-407,-363,-356,-397,-26,-37,0,-702,-593,-1406,-29944,-29964,-29965,-29962,-29967,-29965,-29960,-8369,-8369,-5177,-5704,-29971,-29972,-29972,-29973,-29972,0,-29974,-29975,-29975,-29974,-29974,-29976,-29979,-29980,-29982,-29983,-29983,-29984,-29985,-29985]} 1. e4 {[%emt 0:00:04]} c5 {[%emt 0:00:05]} 2. Nf3 {[%emt 0:00:07]} d6 {[%emt 0:00:47]} 3. d4 {[%emt 0:00:37]} cxd4 {[%emt 0:00:14]} 4. Nxd4 {[%emt 0:00:06]} Nf6 {[%emt 0:00:06]} 5. Nc3 {[%emt 0:00:06]} a6 {[%emt 0:00:21]} 6. Be2 {[%emt 0:02:06]} e5 {[%emt 0:01:35]} 7. Nb3 {[%emt 0:00:08]} Be7 {[%emt 0:02:15]} 8. O-O {[%emt 0:00:07]} O-O {[%emt 0:00:05]} 9. a4 {[%emt 0:03:08]} Be6 {[%emt 0:02:06]} 10. Be3 {[%emt 0:01:30]} Nc6 {[%emt 0:06:51]} 11. Qd2 {[%emt 0:06:46]} Nb4 {[%emt 0:15:29]} 12. Rfd1 {[%emt 0:22:40]} Qc7 {[%emt 0:04:21]} 13. a5 {[%emt 0:10:15]} d5 {[%emt 0:01:38] White must now prevent ...d4. The position is equal.} 14. Bb6 {[%emt 0:12:36]} Qc8 {[%emt 0:12:28]} 15. exd5 {[%emt 0:00:20]} Nbxd5 {[%emt 0:04:28]} 16. Nxd5 {[%emt 0:00:31]} Nxd5 {[%emt 0:00:05]} 17. Bf3 {[%emt 0:01:55]} Nxb6 {[%emt 0:05:58]} 18. axb6 {[%emt 0:00:05]} f5 {[%emt 0:01:26]} 19. Bd5 {[%emt 0:01:00]} Rd8 {[%emt 0:00:04]} 20. c4 {[%emt 0:00:29]} Bxd5 {[%emt 0:12:11]} 21. cxd5 {[%emt 0:00:05] Threatens to win with Rac1.} Qd7 {[%emt 0:07:00]} 22. Na5 {[%emt 0:07:09]} Rac8 {[%emt 0:00:14] Prevents d6.} 23. d6 {[%emt 0:11:00]} Qxd6 {[%emt 0:00:34]} 24. Qxd6 {[%emt 0:00:11]} Rxd6 {[%emt 0:00:01]} 25. Rxd6 {[%emt 0:00:11]} Bxd6 {[%emt 0:00:02]} 26. Nxb7 $11 {[%emt 0:00:14][%mdl 4096] Endgame. KRB-KRN} Bb4 {[%emt 0:00:06]} 27. Rd1 {[%emt 0:06:33]} (27. Kf1 $11) 27... Rc6 $17 {[%emt 0:04:50]} 28. g4 {[%emt 0:06:14]} Rxb6 $19 {[%emt 0:00:46]} 29. Rd8+ {[%emt 0:00:05]} Kf7 {[%emt 0:08:46]} 30. Rd7+ {[%emt 0:00:01]} Be7 $1 {[%emt 0:02:01]} 31. gxf5 {[%emt 0:01:18]} Ke8 {[%emt 0:00:05]} (31... Rxb2 32. Nd6+ Kf8 33. Nc4 $15) 32. Rc7 {[%emt 0:00:05]} Rb5 {[%emt 0:00:05][%cal Oa6a5] Inhibits Nc5.} (32... Rxb2 33. Nc5 $11) 33. Kg2 {[%emt 0:03:33]} (33. Kf1 $17) 33... e4 {[%emt 0:00:14]} (33... Rxb2 34. Nc5 $15) 34. b4 {[%emt 0:00:47]} Rxb4 {[%emt 0:02:48]} (34... Bxb4 $19 {And now ...Be7 would win.} 35. Rxg7 a5 (35... Rxf5 36. Rxh7 a5 37. Rh4 $17) 36. Rxh7 a4 (36... Rxf5 37. Rh4 $17) 37. Rh8+ Kd7) 35. Na5 {[%emt 0:00:52]} ({Better is} 35. Nc5 $15) 35... Rb2 {[%emt 0:04:00]} (35... Bd8 $142 36. Rc8 Rb5 (36... Kd7 37. Rxd8+ Kxd8 38. Nc6+ Kd7 39. Nxb4 $18)) 36. Nc4 $17 {[%emt 0:02:44]} Ra2 {[%emt 0:00:08]} 37. Ne3 {[%emt 0:01:18]} (37. Kg3 $17 {was called for.}) 37... Bf6 {[%emt 0:01:48]} (37... Bh4 $19 {is more deadly.} 38. Rc4 Rxf2+ 39. Kh3 Bg5 40. Rxe4+ Kd8) 38. Rc4 {[%emt 0:01:06]} Kd7 {[%emt 0:00:20]} 39. Rxe4 {[%emt 0:00:11]} a5 {[%emt 0:00:01]} 40. Nd5 {[%emt 0:00:15]} Ba1 $1 {[%emt 0:00:57]} 41. Kf3 {[%emt 0:01:31]} Kd6 {[%emt 0:00:24]} 42. Ne3 {[%emt 0:00:49]} a4 {[%emt 0:01:03]} 43. Re8 {[%emt 0:00:21]} (43. Rc4 $15) 43... Kc5 {[%emt 0:00:49]} 44. Ra8 {[%emt 0:00:42]} Bf6 {[%emt 0:00:23]} 45. Ra5+ $2 {[%emt 0:00:21]} (45. Ke4 $15) 45... Kb4 $19 {[%emt 0:00:19]} 46. Ra7 {[%emt 0:00:17]} Kb5 {[%emt 0:00:57]} 47. Rb7+ {[%emt 0:00:37]} Kc6 {[%emt 0:00:43]} 48. Ra7 {[%emt 0:00:10]} Bd4 $1 {[%emt 0:00:43]} 49. Ra6+ {[%emt 0:00:31]} Kc5 $2 {[%emt 0:01:31]} (49... Kb5 $19 50. Ra8 a3) 50. Ra8 {[%emt 0:00:53]} (50. Ke4 $15) 50... a3 {[%emt 0:00:42] Black has more active pieces.} ({Black should try} 50... Kb6 $1 $17 {Strongly threatening ...Kb7.} 51. Rb8+ Kc7) 51. Ke4 $15 {[%emt 0:00:34]} Bf6 {[%emt 0:00:06][%cal Oh7h5]} (51... Rxf2 52. Rc8+ (52. Rxa3 Rxh2 53. Ra5+ Kb4 $15) 52... Kb4 53. Nd5+ (53. Kxd4 Rd2+ 54. Ke5 a2 $11) 53... Kb3 54. Rb8+ (54. Kxd4 a2 $11) 54... Kc4 55. Rb4+ Kc5 56. Rxd4 $16) 52. Ng4 $2 {[%emt 0:00:37]} (52. Kd3 $15) 52... Bh4 {[%emt 0:00:51]} (52... Be7 $1 $19 {...Kb5 is the strong threat.} 53. Ne3 Kc6 (53... Rxf2 54. Rxa3 Re2 55. h3 $11)) 53. f3 {[%emt 0:00:36]} (53. Kd3 $17) 53... h5 {[%emt 0:00:13]} (53... Be1 $19 {has better winning chances. Hoping for ...Kb5.} 54. Ne3 Bb4 (54... Rxh2 55. Rxa3 Re2 56. f6 $11)) 54. Ne3 {[%emt 0:00:16]} (54. f6 $142 gxf6 (54... hxg4 $2 55. fxg7 Re2+ 56. Kf5 $18) (54... Bxf6 55. Nxf6 gxf6 56. Kf5 $17) 55. Ne3) 54... Bg5 {[%emt 0:00:25]} ({Much worse is} 54... Rxh2 $6 55. Rxa3 Re2 56. Kd3 $11) (54... Kc6 $17 {[%cal Oc6b7]} 55. h3 Be1) 55. f4 {[%emt 0:00:23]} Bf6 {[%emt 0:00:13][%cal Of6e7]} 56. Rc8+ $2 {[%emt 0:00:16]} (56. Kd3 $11 {and White has nothing to worry.}) 56... Kb5 {[%emt 0:00:25]} (56... Kb6 $1 $19 57. Nc2 Rxc2 58. Rxc2 Kb5) 57. Rb8+ {[%emt 0:00:16] [#]} (57. Ra8 $17 {was the only chance.}) 57... Kc6 $1 $19 {[%emt 0:00:23]} 58. Ra8 {[%emt 0:00:10]} Kb7 {[%emt 0:00:21] Inhibits Ra7+.} (58... Rxh2 59. Ra6+ Kc5 60. Rxa3 $11) 59. Ra4 {[%emt 0:00:08] [#]} Be7 $1 {[%emt 0:00:04]} ({Weaker is} 59... Rxh2 60. Rxa3 Rh1 61. Kf3 $11) 60. Nd5 {[%emt 0:00:48]} Bc5 {[%emt 0:00:34]} 61. h3 $2 {[%emt 0:01:13]} (61. h4) 61... Rd2 {[%emt 0:00:35]} 62. Nc3 {[%emt 0:00:24]} h4 {[%emt 0:00:22]} 63. Ra5 {[%emt 0:00:32]} Rd4+ $2 {[%emt 0:00:58]} (63... Kb6 $19 64. Rb5+ Kc6) 64. Ke5 $1 $11 {[%emt 0:00:19]} Bb4 {[%emt 0:00:03]} 65. Rb5+ $2 {[%emt 0:01:14][%mdl 8192] White is now going downhill.} (65. Rxa3 $11 Rd3 66. Rb3 Rxc3 67. Rxb4+ Kc6 68. f6 gxf6+ 69. Kxf6) 65... Kc6 $19 {[%emt 0:00:02]} 66. Rb8 {[%emt 0:00:31]} Bxc3 {[%emt 0:00:53] KRB-KR} 67. Rc8+ {[%emt 0:00:01]} Kd7 {[%emt 0:00:42]} 68. Rxc3 {[%emt 0:00:02] KR-KR} Ra4 {[%emt 0:00:05]} 69. Rc1 {[%emt 0:00:28]} a2 {[%emt 0:00:04]} 70. Ra1 {[%emt 0:00:08]} Ke7 {[%emt 0:00:02] ( -> ...Kf7)} 71. f6+ {[%emt 0:00:20]} gxf6+ {[%emt 0:00:32]} 72. Kf5 {[%emt 0:00:03]} Kf7 {[%emt 0:01:16]} 73. Kg4 {[%emt 0:00:03]} Kg6 {[%emt 0:00:22]} 74. Kxh4 {[%emt 0:00:49]} Rxf4+ {[%emt 0:00:22]} 75. Kg3 {[%emt 0:00:03]} Ra4 {[%emt 0:00:05] Black mates.} 76. Kf3 {[%emt 0:01:00]} Kf5 {[%emt 0:00:23]} 77. Ke3 {[%emt 0:01:20]} Kg5 {[%emt 0:00:24]} 78. Kd3 {[%emt 0:01:16]} Kh4 {[%emt 0:00:17]} 79. Kc3 {[%emt 0:00:24]} f5 {[%emt 0:00:24]} 80. Kb3 {[%emt 0:00:38]} Ra8 {[%emt 0:00:06]} 81. Kb2 {[%emt 0:00:30]} f4 {[%emt 0:00:06] Weighted Error Value: White=0.43/Black=0.28 (precise) .  Loses game:     	White=4     	---        Missed win:     	---       	Black=2      Mistake:       	White=11    	Black=8      Inaccurate:     	White=2     	Black=4      OK:         	White=14    	Black=15     Best:        	White=4     	Black=6      Strong:       	White=1     	Black=3} 0-1

[Event "XVI Memorial Lezcano Montalvo 2024"]
[Site "Gran Canaria"]
[Date "2024.03.30"]
[Round "8.8"]
[White "Yankelevich, Lev"]
[Black "Garcia Blanco, Omar"]
[Result "1/2-1/2"]
[ECO "D85"]
[WhiteElo "2412"]
[BlackElo "2377"]
[Annotator "RC"]
[PlyCount "80"]
[EventDate "2024.03.23"]
[EventType "swiss"]
[EventCountry "ESP"]
[SourceTitle "playchess.com"]
[Source "ChessBase"]
[SourceQuality "1"]
[TimeControl "5400+30"]

1. d4 {[%emt 0:04:45]} Nf6 {[%emt 0:00:07]} 2. Nf3 {[%emt 0:00:08]} g6 {[%emt 0:00:43]} 3. c4 {[%emt 0:00:43]} Bg7 {[%emt 0:00:14]} 4. Nc3 {[%emt 0:00:07]} d5 {[%emt 0:00:07]} 5. cxd5 {[%emt 0:00:10]} Nxd5 {[%emt 0:00:08]} 6. e4 {[%emt 0:00:05]} Nxc3 {[%emt 0:00:10]} 7. bxc3 {[%emt 0:00:05]} c5 {[%emt 0:00:09]} 8. Bb5+ {[%emt 0:00:05]} Nc6 {[%emt 0:00:11]} 9. O-O {[%emt 0:02:42]} O-O {[%emt 0:00:51]} 10. d5 {[%emt 0:02:43]} Na5 {[%emt 0:09:36]} 11. Be3 {[%emt 0:05:32]} Qc7 {[%emt 0:01:23]} 12. Rc1 {[%emt 0:07:03]} a6 {[%emt 0:04:31]} 13. Be2 {[%emt 0:00:20]} b5 {[%emt 0:03:15]} 14. c4 {[%emt 0:14:21]} b4 {[%emt 0:03:56]} 15. Ne1 {[%emt 0:00:11]} f5 {[%emt 0:04:57]} 16. Nd3 {[%emt 0:03:28]} Nb7 {[%emt 0:01:07]} 17. Bf4 {[%emt 0:02:27]} Qa5 {[%emt 0:09:53]} 18. e5 {[%emt 0:00:34]} Qxa2 {[%emt 0:02:32]} 19. h4 {[%emt 0:07:54]} Qa5 {[%emt 0:02:42]} 20. h5 {[%emt 0:01:58]} Qb6 {[%emt 0:01:37]} 21. hxg6 {[%emt 0:03:15]} hxg6 {[%emt 0:00:07]} 22. e6 {[%emt 0:00:56]} a5 {[%emt 0:00:47]} 23. Ne5 {[%emt 0:03:15]} a4 {[%emt 0:03:33]} 24. Nxg6 {[%emt 0:00:27]} Qd8 {[%emt 0:00:10]} 25. d6 {[%emt 0:08:21]} Nxd6 {[%emt 0:24:22]} 26. Nxe7+ {[%emt 0:00:19]} Qxe7 {[%emt 0:00:05]} 27. Bxd6 {[%emt 0:00:06]} Qxe6 {[%emt 0:00:40]} 28. Bf3 {[%emt 0:03:55]} Rd8 {[%emt 0:00:19]} 29. Bd5 {[%emt 0:02:08]} Ra6 {[%emt 0:00:04]} 30. Re1 {[%emt 0:08:33]} Rdxd6 {[%emt 0:00:39]} 31. Qh5 {[%emt 0:02:46]} Kf8 {[%emt 0:04:12]} 32. Rxe6 {[%emt 0:02:01]} Bxe6 {[%emt 0:00:11]} 33. Re1 {[%emt 0:00:29]} a3 {[%emt 0:10:46]} 34. Bxe6 {[%emt 0:00:10]} Rxe6 {[%emt 0:00:06]} 35. Qxf5+ {[%emt 0:00:04]} Ke7 {[%emt 0:00:13]} 36. Qxc5+ {[%emt 0:00:06]} Kf7 {[%emt 0:00:32]} 37. Qc7+ {[%emt 0:02:00]} Kg6 {[%emt 0:01:21]} 38. Qg3+ {[%emt 0:00:44]} Kf7 {[%emt 0:02:10]} 39. Qc7+ {[%emt 0:00:34]} Kg6 {[%emt 0:03:01]} 40. Qg3+ {[%emt 0:00:07]} Kf7 {[%emt 0:02:19]} 1/2-1/2

[Event "XVI Memorial Lezcano Montalvo 2024"]
[Site "Gran Canaria"]
[Date "2024.03.30"]
[Round "8.9"]
[White "Perez Guerra, Raul"]
[Black "Barlov, Dragan"]
[Result "1-0"]
[ECO "C01"]
[WhiteElo "2250"]
[BlackElo "2387"]
[Annotator "RC"]
[PlyCount "65"]
[EventDate "2024.03.23"]
[EventType "swiss"]
[EventCountry "ESP"]
[SourceTitle "playchess.com"]
[Source "ChessBase"]
[SourceQuality "1"]
[TimeControl "5400+30"]

1. e4 {[%emt 0:00:12]} e6 {[%emt 0:00:57]} 2. d4 {[%emt 0:00:27]} d5 {[%emt 0:00:40]} 3. exd5 {[%emt 0:02:20]} exd5 {[%emt 0:00:42]} 4. Nc3 {[%emt 0:00:05]} c6 {[%emt 0:01:02]} 5. Bd3 {[%emt 0:01:18]} Bd6 {[%emt 0:02:09]} 6. Nge2 {[%emt 0:05:15]} Ne7 {[%emt 0:04:20]} 7. Ng3 {[%emt 0:05:50]} Qb6 {[%emt 0:15:32]} 8. Nce2 {[%emt 0:07:41]} O-O {[%emt 0:03:45]} 9. c3 {[%emt 0:03:11]} c5 {[%emt 0:12:16]} 10. dxc5 {[%emt 0:03:33]} Bxc5 {[%emt 0:00:49]} 11. O-O {[%emt 0:00:09]} Nbc6 {[%emt 0:00:28]} 12. b4 {[%emt 0:21:00]} Bd6 {[%emt 0:00:17]} 13. Be3 {[%emt 0:00:05]} Qc7 {[%emt 0:00:21]} 14. Nd4 {[%emt 0:00:06]} Bf4 {[%emt 0:11:29]} 15. Nb5 {[%emt 0:03:27]} Qb8 {[%emt 0:00:15]} 16. Re1 {[%emt 0:03:34]} Bxe3 {[%emt 0:02:12]} 17. Rxe3 {[%emt 0:00:17]} a6 {[%emt 0:05:11]} 18. Nd4 {[%emt 0:08:42]} Nxd4 {[%emt 0:00:30]} 19. Rxe7 {[%emt 0:00:29]} Nc6 {[%emt 0:02:35]} 20. Re3 {[%emt 0:01:16]} g6 {[%emt 0:07:12]} 21. Qf3 {[%emt 0:08:44]} Qd6 {[%emt 0:01:41]} 22. Rd1 {[%emt 0:00:14]} Be6 {[%emt 0:07:10]} 23. Qf6 {[%emt 0:00:42]} Qd8 {[%emt 0:08:49]} 24. Qf4 {[%emt 0:00:28]} Bd7 {[%emt 0:07:32]} 25. Nh5 {[%emt 0:01:34]} f5 {[%emt 0:00:23]} 26. Qh6 {[%emt 0:00:36]} Rf7 {[%emt 0:00:36]} 27. Nf4 {[%emt 0:00:01]} Ne7 {[%emt 0:02:22]} 28. Bc2 {[%emt 0:00:43]} Bc6 {[%emt 0:01:26]} 29. c4 {[%emt 0:02:06]} d4 {[%emt 0:01:35]} 30. Ne6 {[%emt 0:00:18]} Qb6 {[%emt 0:00:19]} 31. Rxd4 {[%emt 0:01:24]} Qxb4 {[%emt 0:00:25]} 32. Bb3 {[%emt 0:02:43]} Be4 {[%emt 0:00:25]} 33. c5 {[%emt 0:02:02]} 1-0

[Event "XVI Memorial Lezcano Montalvo 2024"]
[Site "Gran Canaria"]
[Date "2024.03.30"]
[Round "8.10"]
[White "Hernandez Leon, Alberto"]
[Black "Oudeh Mishmesh, Omar"]
[Result "1-0"]
[ECO "E14"]
[WhiteElo "2207"]
[BlackElo "2301"]
[Annotator "RC"]
[PlyCount "65"]
[EventDate "2024.03.23"]
[EventType "swiss"]
[EventCountry "ESP"]
[SourceTitle "playchess.com"]
[Source "ChessBase"]
[SourceQuality "1"]
[TimeControl "5400+30"]

1. d4 {[%emt 0:00:03]} Nf6 {[%emt 0:00:09]} 2. c4 {[%emt 0:00:10]} e6 {[%emt 0:00:09]} 3. Nf3 {[%emt 0:00:08]} d5 {[%emt 0:00:27]} 4. e3 {[%emt 0:00:38]} a6 {[%emt 0:05:20]} 5. b3 {[%emt 0:01:01]} b6 {[%emt 0:01:53]} 6. Bd3 {[%emt 0:00:26]} Bb7 {[%emt 0:01:36]} 7. O-O {[%emt 0:01:41]} Nbd7 {[%emt 0:00:44]} 8. Bb2 {[%emt 0:01:37]} Be7 {[%emt 0:01:29]} 9. Nc3 {[%emt 0:02:40]} O-O {[%emt 0:02:16]} 10. Qe2 {[%emt 0:01:52]} c5 {[%emt 0:08:00]} 11. Rac1 {[%emt 0:03:38]} Bd6 {[%emt 0:05:02]} 12. Rfd1 {[%emt 0:05:59]} cxd4 {[%emt 0:13:52]} 13. exd4 {[%emt 0:01:13]} Qb8 {[%emt 0:06:49]} 14. h3 {[%emt 0:03:07]} Bf4 {[%emt 0:01:22]} 15. Rc2 {[%emt 0:15:30]} Re8 {[%emt 0:00:20]} 16. cxd5 {[%emt 0:07:24]} exd5 {[%emt 0:02:45]} 17. Qf1 {[%emt 0:01:05]} Ne4 {[%emt 0:06:14]} 18. Ne2 {[%emt 0:14:50]} Bd6 {[%emt 0:04:37]} 19. Bc1 {[%emt 0:02:22]} h6 {[%emt 0:03:53]} 20. Nh4 {[%emt 0:02:49]} Qd8 {[%emt 0:09:17]} 21. Nf5 {[%emt 0:00:26]} Bb8 {[%emt 0:01:24]} 22. g4 {[%emt 0:16:29]} Qf6 {[%emt 0:02:16]} 23. Qg2 {[%emt 0:01:21]} Qd8 {[%emt 0:11:50]} 24. f3 {[%emt 0:07:38]} Ng5 {[%emt 0:00:51]} 25. h4 {[%emt 0:01:15]} Ne6 {[%emt 0:00:04]} 26. g5 {[%emt 0:00:42]} hxg5 {[%emt 0:01:35]} 27. hxg5 {[%emt 0:00:03]} Ndf8 {[%emt 0:02:56]} 28. Kf2 {[%emt 0:01:14]} Ng6 {[%emt 0:01:12]} 29. Rh1 {[%emt 0:00:32]} Bc8 {[%emt 0:02:24]} 30. Rxc8 {[%emt 0:04:41]} Qxc8 {[%emt 0:00:11]} 31. Qh3 {[%emt 0:00:09]} Nef8 {[%emt 0:00:29]} 32. Ba3 {[%emt 0:00:45]} Qe6 {[%emt 0:01:58]} 33. Bxf8 {[%emt 0:00:51]} 1-0

[Event "XVI Memorial Lezcano Montalvo 2024"]
[Site "Gran Canaria"]
[Date "2024.03.30"]
[Round "8.11"]
[White "Garcia Padron, Jose"]
[Black "Fiorito, Fabian"]
[Result "0-1"]
[ECO "A01"]
[WhiteElo "2385"]
[BlackElo "2251"]
[Annotator "RC"]
[PlyCount "114"]
[EventDate "2024.03.23"]
[EventType "swiss"]
[EventCountry "ESP"]
[SourceTitle "playchess.com"]
[Source "ChessBase"]
[SourceQuality "1"]
[TimeControl "5400+30"]

1. b3 {[%emt 0:00:31]} d5 {[%emt 0:01:49]} 2. Bb2 {[%emt 0:00:29]} Nf6 {[%emt 0:00:08]} 3. e3 {[%emt 0:00:16]} Bf5 {[%emt 0:00:28]} 4. Bxf6 {[%emt 0:00:56]} exf6 {[%emt 0:03:20]} 5. Nf3 {[%emt 0:00:36]} c5 {[%emt 0:02:59]} 6. d4 {[%emt 0:01:55]} Nc6 {[%emt 0:00:15]} 7. c3 {[%emt 0:00:15]} Rc8 {[%emt 0:03:58]} 8. Bd3 {[%emt 0:00:26]} Be6 {[%emt 0:00:50]} 9. O-O {[%emt 0:01:54]} a6 {[%emt 0:03:46]} 10. a3 {[%emt 0:01:20]} cxd4 {[%emt 0:01:59]} 11. cxd4 {[%emt 0:01:26]} Be7 {[%emt 0:05:47]} 12. b4 {[%emt 0:00:19]} O-O {[%emt 0:00:14]} 13. Nbd2 {[%emt 0:00:06]} a5 {[%emt 0:00:38]} 14. b5 {[%emt 0:00:13]} Nb8 {[%emt 0:02:07]} 15. Qb1 {[%emt 0:08:23]} g6 {[%emt 0:00:09]} 16. Rc1 {[%emt 0:00:54]} Nd7 {[%emt 0:01:17]} 17. Rxc8 {[%emt 0:01:45]} Qxc8 {[%emt 0:00:08]} 18. Qb2 {[%emt 0:00:21]} a4 {[%emt 0:03:45]} 19. e4 {[%emt 0:06:14]} Nb6 {[%emt 0:00:54]} 20. exd5 {[%emt 0:00:20]} Bxd5 {[%emt 0:04:45]} 21. Be4 {[%emt 0:00:16]} Rd8 {[%emt 0:03:30]} 22. Bxd5 {[%emt 0:00:58]} Rxd5 {[%emt 0:00:31]} 23. Ne4 {[%emt 0:03:44]} Qc4 {[%emt 0:07:17]} 24. Rb1 {[%emt 0:09:54]} Qd3 {[%emt 0:02:50]} 25. Nc3 {[%emt 0:01:17]} Rd7 {[%emt 0:02:21]} 26. Rd1 {[%emt 0:00:25]} Qc4 {[%emt 0:03:39]} 27. h4 {[%emt 0:04:50]} Rc7 {[%emt 0:01:10]} 28. Ne4 {[%emt 0:04:36]} Qd5 {[%emt 0:03:40]} 29. Re1 {[%emt 0:01:29]} Kg7 {[%emt 0:01:53]} 30. Ned2 {[%emt 0:03:00]} h5 {[%emt 0:04:37]} 31. Re3 {[%emt 0:01:47]} Bf8 {[%emt 0:03:42]} 32. Qb1 {[%emt 0:15:11]} Nc4 {[%emt 0:10:01]} 33. Nxc4 {[%emt 0:02:13]} Rxc4 {[%emt 0:00:58]} 34. Qb2 {[%emt 0:03:09]} Qf5 {[%emt 0:01:49]} 35. b6 {[%emt 0:05:26]} Bd6 {[%emt 0:04:51]} 36. Qa1 {[%emt 0:14:02]} Qc2 {[%emt 0:06:08]} 37. Qf1 {[%emt 0:00:43]} Rc3 {[%emt 0:02:31]} 38. Re1 {[%emt 0:02:02]} Qd3 {[%emt 0:01:12]} 39. Rd1 {[%emt 0:01:41]} Qxf1+ {[%emt 0:00:13]} 40. Kxf1 {[%emt 0:00:02]} Rxa3 {[%emt 0:00:14]} 41. Ke2 {[%emt 0:00:55]} Rb3 {[%emt 0:01:32]} 42. Nd2 {[%emt 0:00:07]} Rxb6 {[%emt 0:05:39]} 43. Nc4 {[%emt 0:00:07]} Ra6 {[%emt 0:00:34]} 44. Nxd6 {[%emt 0:02:26]} Rxd6 {[%emt 0:00:01]} 45. Kd3 {[%emt 0:00:08]} b5 {[%emt 0:00:27]} 46. Rb1 {[%emt 0:00:29]} Rb6 {[%emt 0:01:08]} 47. Kc3 {[%emt 0:01:23]} Kf8 {[%emt 0:00:55]} 48. Kb4 {[%emt 0:00:32]} Ke7 {[%emt 0:00:09]} 49. Kc5 {[%emt 0:01:54]} Rb8 {[%emt 0:00:04]} 50. Ra1 {[%emt 0:00:06]} Kd7 {[%emt 0:00:29]} 51. d5 {[%emt 0:00:06]} Rb7 {[%emt 0:01:27]} 52. Ra2 {[%emt 0:00:53]} b4 {[%emt 0:00:56]} 53. Rxa4 {[%emt 0:00:15]} b3 {[%emt 0:00:02]} 54. Ra1 {[%emt 0:00:08]} b2 {[%emt 0:00:03]} 55. Rb1 {[%emt 0:00:04]} Rc7+ {[%emt 0:00:27]} 56. Kd4 {[%emt 0:00:20]} Rc2 {[%emt 0:00:16]} 57. f4 {[%emt 0:02:24]} Rxg2 {[%emt 0:02:28]} 0-1